bitfinex-derivatives/quotes_ETHF0:USTF0_20220108
["timestamp","ask_amount","ask_price","bid_price","bid_amount"]
[1641629714899,1.87329649,3228.0,3227.9,2.00479]
[1641629715100,6.83000249,3228.0,3227.9,2.00479]
[1641629715303,20.41479049,3228.0,3227.9,2.00479]
[1641629715503,19.485394,3228.0,3227.6,1.95607595]
[1641629715702,6.165394,3228.0,3227.5,0.75919482]
[1641629716504,2.00479,3227.9,3227.5,0.75919482]
[1641629716802,0.264788,3227.8,3227.3,3.87411491]
[1641629717004,0.264788,3227.8,3227.2,2.00479]
[1641629717005,5.221878,3227.8,3227.2,2.00479]
[1641629717902,13.32,3227.4,3227.2,2.00479]
[1641629718105,0.264788,3227.3,3227.2,2.00479]
[1641629718304,5.590204,3227.3,3227.2,2.00479]
[1641629718503,4.957627,3227.4,3227.2,2.00479]
[1641629718905,2.00479,3227.9,3227.3,2.35541246]
[1641629719105,2.00479,3227.9,3227.2,4.17869]
[1641629719507,8.0,3229.8,3227.2,4.17869]
[1641629719508,1.54877399,3229.6,3227.8,5.40418645]
[1641629719707,1.54877399,3229.6,3229.1,2.35541246]
[1641629719908,0.264788,3229.5,3229.1,3.01051246]
[1641629720108,1.11465584,3229.7,3229.4,2.35541246]
[1641629720407,1.33740428,3230.2,3229.6,2.35541246]
[1641629720609,2.00479,3230.1,3229.7,0.264788]
[1641629720807,2.00479,3230.1,3230.0,2.35541246]
[1641629721007,2.00479,3230.1,3230.0,0.6142]
[1641629722207,0.264788,3230.2,3229.6,2.35541246]
[1641629722408,4.953483,3230.1,3229.6,0.264788]
[1641629722608,2.00479,3230.7,3230.0,2.35541246]
[1641629722809,0.264788,3230.6,3229.9,2.00479]
[1641629723209,0.264788,3230.6,3229.8,2.35541246]
[1641629723210,4.953176,3230.5,3229.8,2.35541246]
[1641629723411,0.264788,3230.4,3229.8,2.35541246]
[1641629723608,0.264788,3230.4,3229.5,1.51376372]
[1641629723808,4.953407,3230.3,3230.0,2.35541246]
[1641629724008,0.264788,3230.2,3230.0,2.35541246]
[1641629724409,4.95333,3230.5,3230.1,0.93942391]
[1641629724609,2.00479,3230.3,3230.1,0.93942391]
[1641629724810,2.00479,3230.3,3230.2,2.35541246]
[1641629725211,6.957966,3230.3,3230.1,0.93942391]
[1641629725409,6.957966,3230.3,3230.1,3.29483637]
[1641629725813,4.953176,3230.3,3230.1,3.29483637]
[1641629726012,2.00479,3230.7,3230.1,3.55962437]
[1641629726212,2.00479,3230.7,3230.6,2.35541246]
[1641629726813,6.957353,3230.7,3230.6,2.35541246]
[1641629727213,7.222141,3230.7,3230.2,1.54762347]
[1641629727412,8.061441,3230.7,3230.4,2.35541246]
[1641629727712,8.061441,3230.7,3230.2,1.54762347]
[1641629727912,21.381441,3230.7,3230.2,3.90303593]
[1641629728115,0.07335845,3230.5,3229.6,2.00479]
[1641629728315,4.0,3230.6,3229.6,2.00479]
[1641629728513,2.00479,3230.0,3229.8,1.42664155]
[1641629728712,2.71409,3230.0,3229.8,1.42664155]
[1641629728913,4.953713,3229.9,3229.8,1.42664155]
[1641629729313,4.953713,3229.9,3229.8,1.69142955]
[1641629729512,3.11910978,3230.7,3229.8,1.69142955]
[1641629730014,3.11910978,3230.7,3229.8,0.264788]
[1641629730312,4.953176,3230.6,3229.8,0.264788]
[1641629730512,4.953176,3230.6,3230.0,2.00479]
[1641629730813,4.953176,3230.6,3230.5,1.42664155]
[1641629733717,6.1466043,3230.6,3230.5,1.42664155]
[1641629734417,0.92869796,3230.4,3230.1,0.88068048]
[1641629734616,0.92869796,3230.4,3230.3,1.42664155]
[1641629735021,5.88172096,3230.4,3230.3,1.42664155]
[1641629735216,4.953023,3230.4,3230.3,1.42664155]
[1641629735416,2.00479,3230.7,3230.3,1.42664155]
[1641629735616,2.269578,3230.7,3230.3,1.42664155]
[1641629736020,4.952793,3230.6,3230.3,1.42664155]
[1641629737118,0.92869265,3230.4,3230.3,1.42664155]
[1641629737320,0.92869265,3230.4,3229.8,3.43143155]
[1641629737520,0.264788,3230.3,3229.8,3.43143155]
[1641629737923,4.953483,3230.2,3229.8,3.43143155]
[1641629738121,0.264788,3230.1,3229.8,3.43143155]
[1641629738525,4.953637,3230.0,3229.8,3.43143155]
[1641629739428,0.92869265,3230.4,3229.8,4.93143155]
[1641629739627,0.92869265,3230.4,3230.3,1.42664155]
[1641629740025,0.92869265,3230.4,3230.3,2.45550246]
[1641629740826,2.00479,3230.7,3230.3,2.45550246]
[1641629741028,2.00479,3230.7,3230.3,1.29364891]
[1641629741227,2.00479,3230.7,3230.6,1.42664155]
[1641629742126,2.00479,3230.7,3230.4,0.640787]
[1641629742526,0.264788,3230.6,3230.3,2.45550246]
[1641629743532,0.264788,3230.6,3230.4,2.06742855]
[1641629744833,0.264788,3230.6,3230.4,1.42664155]
[1641629747439,1.19341095,3230.6,3230.4,1.42664155]
[1641629749748,0.92862295,3230.6,3230.4,1.42664155]
[1641629750148,0.92862295,3230.6,3230.5,1.1430729]
[1641629751356,0.92862295,3230.6,3230.4,1.42664155]
[1641629751753,0.92862295,3230.6,3229.8,4.00958]
[1641629751952,0.92862295,3230.6,3230.4,1.42664155]
[1641629752453,0.92862295,3230.6,3230.5,0.264788]
[1641629753253,0.92862295,3230.6,3230.4,1.42664155]
[1641629756859,0.92862295,3230.6,3230.5,0.264788]
[1641629759260,0.92862295,3230.6,3230.4,1.42664155]
[1641629760660,0.92862295,3230.6,3230.4,1.69142955]
[1641629761563,0.92862295,3230.6,3230.4,1.42664155]
[1641629763463,0.92862295,3230.6,3230.5,0.264788]
[1641629765165,0.92862295,3230.6,3230.4,1.42664155]
[1641629765765,1.19341095,3230.6,3230.4,1.42664155]
[1641629766368,4.07335845,3230.5,3230.3,1.20666025]
[1641629766568,0.92876157,3230.2,3229.4,2.97464354]
[1641629766769,0.17481199,3229.6,3229.1,1.25664314]
[1641629766968,0.92851199,3229.6,3229.1,1.25664314]
[1641629767168,0.264788,3229.5,3229.1,1.25664314]
[1641629767367,0.264788,3229.5,3229.1,2.68328469]
[1641629768370,0.264788,3229.5,3229.1,1.25664314]
[1641629768571,1.202588,3229.5,3229.1,1.25664314]
[1641629768773,2.00479,3229.2,3228.9,2.945344]
[1641629768971,0.264788,3229.1,3228.9,1.42664155]
[1641629771076,2.00479,3229.2,3228.9,1.42664155]
[1641629771282,2.00479,3229.2,3228.8,0.640787]
[1641629771478,2.00479,3229.2,3229.1,1.42664155]
[1641629772882,2.00479,3229.2,3228.9,1.69142955]
[1641629773083,2.269578,3229.2,3228.9,1.42664155]
[1641629774484,2.269578,3229.2,3228.6,2.00479]
[1641629774687,0.94504066,3228.9,3228.1,4.32797349]
[1641629774886,0.94504066,3228.9,3228.8,1.42664155]
[1641629775385,1.20982866,3228.9,3228.8,1.42664155]
[1641629775586,1.20982866,3228.9,3228.4,1.42664155]
[1641629776587,0.9292194,3228.6,3228.4,1.42664155]
[1641629776786,0.264788,3228.5,3228.4,1.42664155]
[1641629776987,0.264788,3228.5,3228.4,0.49728815]
[1641629779491,0.264788,3228.5,3228.4,0.9915973]
[1641629780292,0.264788,3228.5,3228.4,0.49728815]
[1641629781090,28.59862275,3229.7,3228.4,1.99728815]
[1641629781291,28.59862275,3229.7,3229.0,0.49728815]
[1641629781495,0.264788,3229.6,3229.3,0.49728815]
[1641629781689,5.219345,3229.6,3229.3,1.44338815]
[1641629781891,5.219345,3229.6,3229.3,0.9461]
[1641629782290,5.219345,3229.6,3229.3,1.44338815]
[1641629782891,2.00479,3229.4,3229.3,1.44338815]
[1641629783093,2.00479,3229.4,3228.6,1.16970862]
[1641629783293,2.00479,3229.4,3228.7,0.49728815]
[1641629783893,2.00479,3229.4,3228.6,1.16970862]
[1641629784296,2.00479,3229.4,3229.3,0.49728815]
[1641629784493,2.00479,3229.4,3228.7,0.49728815]
[1641629784893,2.00479,3229.4,3228.6,1.16970862]
[1641629785797,2.00479,3229.4,3228.9,0.49728815]
[1641629786297,2.00479,3229.4,3228.6,1.16970862]
[1641629787198,2.00479,3229.4,3228.7,0.49728815]
[1641629788701,2.00479,3229.4,3228.6,1.16970862]
[1641629788900,2.00479,3229.4,3229.3,0.49728815]
[1641629789103,0.264788,3229.6,3229.3,1.13807515]
[1641629789300,0.264788,3229.6,3229.3,2.18877941]
[1641629789500,0.264788,3229.6,3229.5,0.49728815]
[1641629789701,0.264788,3229.6,3229.5,1.17258815]
[1641629791208,0.264788,3229.6,3229.3,2.00479]
[1641629791413,1.00271185,3229.4,3229.0,0.76616899]
[1641629791609,14.278388,3229.6,3229.0,0.76616899]
[1641629791809,1.6471651,3228.8,3228.2,0.94834558]
[1641629792010,15.6324651,3228.8,3228.7,0.76531525]
[1641629792209,16.63517695,3228.8,3228.7,0.76531525]
[1641629792410,21.59065495,3228.8,3228.7,0.76531525]
[1641629792709,8.27065495,3228.8,3228.7,0.56301525]
[1641629792913,12.28023495,3228.8,3228.7,1.525e-05]
[1641629793111,13.82938563,3228.8,3227.8,0.49728815]
[1641629793511,13.82938563,3228.8,3228.0,0.49728815]
[1641629793711,13.82938563,3228.8,3227.7,2.00479]
[1641629793712,13.82938563,3228.8,3228.3,0.49728815]
[1641629794214,12.82667378,3228.8,3228.4,0.49728815]
[1641629794412,9.2727331,3228.8,3228.5,0.264788]
[1641629794613,7.625568,3228.8,3228.7,0.49728815]
[1641629794813,2.00479,3228.8,3228.7,0.49728815]
[1641629795012,2.00479,3228.8,3228.7,0.264788]
[1641629795212,2.00479,3228.8,3228.6,0.49728815]
[1641629795613,2.00479,3229.4,3228.6,0.49728815]
[1641629795813,1.38895259,3229.6,3228.9,0.49728815]
[1641629796013,1.95590363,3230.3,3229.5,0.49728815]
[1641629796213,0.264788,3230.2,3229.5,1.15408815]
[1641629796414,0.264788,3230.2,3229.7,0.49728815]
[1641629796816,18.32271185,3229.8,3229.0,0.49728815]
[1641629797015,0.264788,3229.7,3229.1,2.00479]
[1641629797215,6.53454201,3229.7,3229.1,2.645577]
[1641629797416,6.53454201,3229.7,3229.1,2.910365]
[1641629798216,6.53454201,3229.7,3229.1,2.645577]
[1641629798416,6.53454201,3229.7,3229.1,2.00479]
[1641629799419,19.85454201,3229.7,3229.1,2.00479]
[1641629799918,17.32,3229.3,3229.1,2.00479]
[1641629800120,13.32,3229.1,3227.8,28.2878]
[1641629800318,13.32,3229.1,3228.1,0.49728815]
[1641629800319,4.0,3228.8,3228.1,0.49728815]
[1641629800521,13.584788,3228.7,3228.1,0.49728815]
[1641629800719,18.540573,3228.7,3228.1,0.49728815]
[1641629801321,18.540573,3228.7,3228.6,0.49728815]
[1641629801718,18.540573,3228.7,3228.2,0.264788]
[1641629801922,5.220573,3228.7,3228.6,0.49728815]
[1641629802220,4.955785,3228.7,3228.6,0.49728815]
[1641629803022,2.00479,3229.0,3228.6,0.76207615]
[1641629803222,2.00479,3229.0,3228.9,0.49728815]
[1641629803721,1.37961583,3229.2,3228.7,0.264788]
[1641629803921,1.37961583,3229.2,3228.7,0.49728815]
[1641629804323,1.37961583,3229.2,3228.4,1.70866653]
[1641629804523,1.37961583,3229.2,3229.1,0.49728815]
[1641629804923,1.37961583,3229.2,3229.1,2.50207815]
[1641629805322,1.37961583,3229.2,3229.1,2.00479]
[1641629806326,1.11482783,3229.2,3229.1,2.00479]
[1641629806525,1.11482783,3229.2,3229.1,2.50207815]
[1641629806726,1.11482783,3229.2,3229.1,2.00479]
[1641629807828,1.11482783,3229.2,3229.1,2.50207815]
[1641629808226,1.11482783,3229.2,3229.1,2.00479]
[1641629809427,1.37961583,3229.2,3229.1,2.00479]
[1641629810127,1.11482783,3229.2,3229.1,2.00479]
[1641629815332,1.11482783,3229.2,3229.0,0.49728815]
[1641629815333,1.11482783,3229.2,3228.8,0.49728815]
[1641629815535,1.00271185,3229.0,3228.2,0.49728815]
[1641629815733,4.0,3228.7,3228.2,0.49728815]
[1641629815934,0.264788,3228.6,3228.1,0.76718673]
[1641629816133,13.32,3228.5,3228.1,0.76718673]
[1641629816433,14.0068,3228.5,3228.1,0.76718673]
[1641629816633,1.11515754,3228.3,3228.1,0.76718673]
[1641629817235,1.11515754,3228.3,3227.9,1.13807515]
[1641629817435,1.11515754,3228.3,3228.0,0.264788]
[1641629817736,1.11515754,3228.3,3228.2,0.49728815]
[1641629817935,1.11515754,3228.3,3228.2,0.76207615]
[1641629818134,14.43475824,3229.4,3228.2,0.76207615]
[1641629818334,14.43475824,3229.4,3228.8,0.49728815]
[1641629818535,4.0,3229.0,3228.8,0.49728815]
[1641629818934,4.955247,3228.9,3228.8,0.49728815]
[1641629819134,5.220035,3228.9,3228.8,0.49728815]
[1641629819535,5.220035,3228.9,3228.4,2.00479]
[1641629820139,4.0,3228.5,3228.1,0.49728815]
[1641629820336,0.264788,3228.4,3228.1,0.49728815]
[1641629820537,5.220956,3228.4,3228.1,0.49728815]
[1641629821138,0.264788,3228.4,3228.1,0.49728815]
[1641629822841,3.11980415,3228.7,3227.9,3.02603948]
[1641629823046,2.91102223,3229.4,3228.6,4.00207815]
[1641629823344,1.26749985,3229.3,3228.6,2.71949]
[1641629823541,14.24915001,3228.8,3228.6,0.7147]
[1641629823744,1.83785001,3228.8,3228.1,1.5]
[1641629823941,1.34077199,3228.8,3228.2,0.905575]
[1641629824243,1.60555999,3228.8,3228.2,1.97350301]
[1641629824543,1.60555999,3228.8,3228.2,2.80497157]
[1641629824740,0.69685999,3228.8,3228.2,2.80497157]
[1641629824940,0.69685999,3228.8,3228.2,1.47225556]
[1641629825141,0.264788,3228.8,3228.3,2.00479]
[1641629825344,0.43207199,3228.4,3228.3,2.00479]
[1641629825541,0.69685999,3228.4,3228.3,2.00479]
[1641629826243,0.69685999,3228.4,3227.3,0.65917734]
[1641629826244,13.32,3228.3,3227.3,0.65917734]
[1641629826443,0.43207199,3227.7,3227.5,1.27679099]
[1641629826641,0.264788,3227.6,3227.5,1.27679099]
[1641629826841,5.222031,3227.6,3227.5,1.27679099]
[1641629827041,7.226821,3227.6,3227.5,1.27679099]
[1641629827442,1.54890833,3229.1,3227.6,1.51824818]
[1641629827642,0.43207199,3228.8,3227.6,2.43734818]
[1641629827841,2.38797562,3228.8,3227.6,2.43734818]
[1641629828043,0.25467183,3228.5,3227.6,2.43734818]
[1641629828242,0.43207199,3228.0,3227.6,2.43734818]
[1641629828542,0.43207199,3228.0,3227.6,3.07813518]
[1641629828742,0.25467183,3228.5,3227.6,3.07813518]
[1641629828944,0.25467183,3228.5,3227.6,4.14606319]
[1641629829143,0.25467183,3228.5,3227.7,2.00479]
[1641629829144,2.25946183,3228.5,3227.7,2.00479]
[1641629829346,0.905575,3228.4,3227.8,0.264788]
[1641629829650,0.43207199,3228.3,3227.6,3.22696319]
[1641629829945,6.29412199,3228.4,3227.6,3.22696319]
[1641629830144,6.29412199,3228.4,3227.7,0.264788]
[1641629830344,0.905575,3228.4,3227.7,0.264788]
[1641629831150,2.00479,3227.9,3227.7,0.264788]
[1641629831549,2.00479,3227.9,3227.6,2.15903518]
[1641629832349,2.00479,3227.9,3227.6,3.22696319]
[1641629832648,2.00479,3228.5,3227.7,0.264788]
[1641629832848,2.00479,3228.5,3228.4,1.06792801]
[1641629833050,1.5732821,3229.1,3228.4,1.674775]
[1641629833051,3.5780721,3229.1,3228.4,1.674775]
[1641629833247,0.905575,3229.0,3228.4,1.674775]
[1641629833648,0.905575,3229.0,3228.5,1.17980401]
[1641629833649,0.264788,3229.0,3228.5,1.17980401]
[1641629834449,0.264788,3229.0,3228.5,1.44459201]
[1641629835449,0.43207199,3228.6,3228.5,1.44459201]
[1641629835651,0.43207199,3228.6,3228.5,1.17980401]
[1641629836050,0.264788,3228.9,3228.5,1.17980401]
[1641629836853,0.92915775,3228.8,3228.5,1.17980401]
[1641629837053,0.43207199,3228.6,3228.5,1.17980401]
[1641629837252,0.92915775,3228.8,3228.5,1.17980401]
[1641629838554,0.43207199,3228.6,3228.5,1.17980401]
[1641629838959,0.43207199,3228.6,3228.3,2.00479]
[1641629839155,0.43207199,3228.5,3228.3,2.00479]
[1641629839359,0.69685999,3228.5,3228.3,2.00479]
[1641629844456,0.92925904,3228.4,3228.3,2.00479]
[1641629845457,0.43207199,3228.5,3228.3,2.00479]
[1641629845657,2.00479,3229.1,3228.4,1.5]
[1641629845857,1.5732821,3229.4,3228.4,0.264788]
[1641629846058,1.5732821,3229.4,3229.0,1.5]
[1641629846258,1.5732821,3229.4,3229.2,1.5]
[1641629846464,0.25441528,3229.4,3229.2,1.5]
[1641629846657,1.95590363,3229.6,3229.2,1.5]
[1641629847058,1.95590363,3229.6,3229.3,0.264788]
[1641629847259,2.7335784,3230.0,3229.5,1.5]
[1641629847458,2.7335784,3230.0,3229.6,1.20199393]
[1641629847658,2.00479,3230.0,3229.7,0.264788]
[1641629847859,2.00479,3230.0,3229.7,1.076588]
[1641629851062,2.00479,3230.3,3229.7,2.576588]
[1641629851365,2.00479,3230.3,3229.8,2.00479]
[1641629851564,2.00479,3230.3,3229.9,0.264788]
[1641629852165,0.640787,3230.2,3229.9,0.264788]
[1641629852365,0.640787,3230.2,3229.8,2.00479]
[1641629852765,4.0,3229.9,3227.1,1.11553899]
[1641629852966,4.0,3229.9,3227.5,9.24941711]
[1641629852967,0.92897493,3229.4,3227.5,9.24941711]
[1641629853165,0.92897493,3229.4,3229.2,2.00479]
[1641629853166,1.72197493,3229.4,3229.2,2.00479]
[1641629854075,1.72197091,3229.4,3229.2,2.00479]
[1641629854675,0.640787,3229.3,3228.7,1.35905778]
[1641629854875,0.905575,3229.3,3228.7,1.35905778]
[1641629855275,4.905575,3229.3,3228.6,2.77335059]
[1641629855481,1.5,3229.1,3228.6,0.76856059]
[1641629855679,0.264788,3229.0,3228.6,0.76856059]
[1641629855878,5.220112,3229.0,3228.6,0.76856059]
[1641629856078,0.264788,3229.0,3228.6,0.76856059]
[1641629856377,4.955401,3228.9,3228.6,0.76856059]
[1641629856580,4.955401,3228.9,3228.1,1.27679099]
[1641629856779,0.264788,3228.8,3228.0,0.76856059]
[1641629857381,2.00479,3228.6,3228.0,0.76856059]
[1641629857579,0.905575,3228.5,3228.0,0.76856059]
[1641629857980,2.00479,3228.6,3228.0,1.40934759]
[1641629858183,2.00479,3228.6,3228.0,2.925687]
[1641629858384,1.57596608,3229.5,3228.2,1.54842146]
[1641629858583,1.57596608,3229.5,3228.0,1.425687]
[1641629858784,1.57596608,3229.5,3228.2,0.84632007]
[1641629858982,4.955554,3229.3,3228.2,0.84632007]
[1641629859285,4.955478,3229.4,3228.7,2.00479]
[1641629859482,0.264788,3229.3,3228.7,2.00479]
[1641629859682,5.596265,3229.2,3228.7,2.00479]
[1641629859883,0.640787,3229.2,3228.7,2.00479]
[1641629860084,0.264788,3229.1,3228.7,2.00479]
[1641629860287,0.92910411,3229.0,3228.7,2.00479]
[1641629860886,0.264788,3228.9,3228.7,2.00479]
[1641629861286,0.264788,3228.9,3228.2,1.61488066]
[1641629861484,0.92922082,3228.6,3228.2,0.76856059]
[1641629861686,1.19400882,3228.6,3228.2,0.76856059]
[1641629861886,1.83479582,3228.6,3228.2,0.76856059]
[1641629862488,1.83479582,3228.6,3228.1,0.640787]
[1641629863187,0.92922082,3228.6,3228.3,1.5]
[1641629863389,0.23306488,3229.4,3228.5,3.04824166]
[1641629863589,2.50490835,3229.5,3228.5,1.54824166]
[1641629863989,2.50490835,3229.5,3228.7,1.5]
[1641629864191,0.905575,3229.4,3228.7,1.54822009]
[1641629864393,0.905575,3229.4,3228.4,0.99736478]
[1641629864792,0.905575,3229.4,3228.5,0.76856059]
[1641629865391,0.905575,3229.4,3228.7,2.00479]
[1641629865992,0.92914029,3228.8,3228.5,0.76856059]
[1641629866193,0.640787,3228.7,3228.5,0.76856059]
[1641629866393,0.640787,3228.7,3228.3,0.76856059]
[1641629866592,0.640787,3228.7,3228.3,1.03334859]
[1641629867394,0.640787,3228.7,3228.3,3.03813859]
[1641629867794,0.640787,3228.7,3228.3,2.269578]
[1641629868194,0.905575,3228.7,3228.3,2.269578]
[1641629868693,0.92914029,3228.8,3228.3,2.269578]
[1641629869095,1.56992729,3228.8,3228.3,2.269578]
[1641629869695,1.56992729,3228.8,3228.3,2.00479]
[1641629869895,0.264788,3228.7,3228.3,2.00479]
[1641629870497,0.264788,3228.7,3228.1,0.76856059]
[1641629870897,0.264788,3228.7,3228.0,1.63853093]
[1641629871097,0.264788,3228.7,3228.0,1.90331893]
[1641629871298,2.00479,3228.6,3228.0,1.90331893]
[1641629871497,2.00479,3228.6,3228.0,2.54410593]
[1641629872201,2.00479,3228.6,3228.0,1.90331893]
[1641629872399,0.264788,3228.5,3228.0,1.90331893]
[1641629872999,0.264788,3228.5,3228.0,1.13475834]
[1641629873800,0.264788,3228.5,3228.0,0.86997034]
[1641629874000,0.264788,3228.5,3228.0,1.51075734]
[1641629875304,0.264788,3228.5,3228.0,1.77554534]
[1641629877006,0.264788,3228.5,3228.0,1.90331893]
[1641629877904,2.00479,3228.6,3228.0,1.90331893]
[1641629877907,2.00479,3228.6,3228.1,0.640787]
[1641629878106,2.00479,3228.6,3228.2,0.264788]
[1641629881610,2.269578,3228.6,3228.2,0.264788]
[1641629882911,2.269578,3228.6,3228.0,2.92043792]
[1641629883411,2.269578,3228.6,3228.0,2.15187733]
[1641629884012,0.92926998,3228.4,3228.0,2.15187733]
[1641629884615,1.19405798,3228.4,3228.0,2.15187733]
[1641629885717,1.19405798,3228.4,3228.0,1.28190699]
[1641629886115,1.19405798,3228.4,3228.0,1.92269399]
[1641629887317,1.19405798,3228.4,3228.0,1.54669499]
[1641629887515,1.19405798,3228.4,3228.0,1.28190699]
[1641629888915,0.92926998,3228.4,3228.1,0.264788]
[1641629889316,0.92926998,3228.4,3228.3,2.00479]
[1641629889517,0.92926998,3228.4,3228.3,2.269578]
[1641629889717,0.92926998,3228.4,3228.3,2.00479]
[1641629890720,4.78481913,3228.9,3228.3,2.58439]
[1641629891118,4.78481913,3228.9,3228.4,0.264788]
[1641629891320,5.69039413,3228.9,3228.5,0.79316706]
[1641629892420,5.42560613,3228.9,3228.5,0.79316706]
[1641629892618,5.42560613,3228.9,3228.5,1.59356706]
[1641629892919,5.42560613,3228.9,3228.6,0.264788]
[1641629894721,5.42560613,3228.9,3228.5,1.49746706]
[1641629895122,4.78481913,3228.9,3228.5,1.49746706]
[1641629896325,4.78481913,3228.9,3228.5,0.79316706]
[1641629896925,4.78481913,3228.9,3228.6,0.264788]
[1641629897324,4.78481913,3228.9,3228.7,2.00479]
[1641629897925,0.13607176,3228.5,3228.3,0.76856059]
[1641629898424,0.264788,3228.4,3228.3,0.76856059]
[1641629898625,0.9055,3228.9,3228.3,0.76856059]
[1641629899028,0.264788,3228.8,3228.3,0.76856059]
[1641629899225,5.220496,3228.8,3228.3,0.76856059]
[1641629899426,2.00479,3228.4,3228.3,0.76856059]
[1641629899627,2.00479,3228.4,3227.8,0.76856059]
[1641629899628,2.269578,3228.4,3227.8,0.76856059]
[1641629899828,0.640787,3228.3,3227.9,1.18581328]
[1641629900230,0.264788,3228.2,3227.9,1.18581328]
[1641629902734,2.00479,3228.4,3227.9,1.18581328]
[1641629902932,1.11488772,3229.1,3228.3,1.54834474]
[1641629903131,1.57596608,3229.2,3228.8,1.54817455]
[1641629903332,1.57596608,3229.2,3228.8,0.8913]
[1641629903533,2.00479,3229.0,3228.8,0.8913]
[1641629903934,0.264788,3228.9,3228.8,0.8913]
[1641629905338,0.264788,3228.9,3228.3,2.00479]
[1641629905635,0.264788,3228.9,3228.4,0.76856059]
[1641629905835,0.264788,3228.9,3228.4,1.98300242]
[1641629906235,0.264788,3228.9,3228.4,2.62378942]
[1641629906839,0.264788,3228.9,3228.4,1.85522883]
[1641629907338,0.264788,3228.9,3228.4,1.21444183]
[1641629907538,0.92917127,3228.7,3228.4,1.21444183]
[1641629907738,0.264788,3228.6,3228.4,1.21444183]
[1641629907942,1.56995827,3228.7,3228.4,1.21444183]
[1641629908442,1.83474627,3228.7,3228.4,1.21444183]
[1641629909439,2.00479,3228.5,3228.4,1.21444183]
[1641629911442,1.19395927,3228.7,3228.4,3.21923183]
[1641629911642,1.19395927,3228.7,3228.4,4.15123183]
[1641629912246,1.19395927,3228.7,3228.5,1.26290774]
[1641629913446,0.92917127,3228.7,3228.5,1.52769574]
[1641629913647,0.92917127,3228.7,3228.5,2.18139574]
[1641629914949,0.92917127,3228.7,3228.5,1.68704859]
[1641629915950,0.92917127,3228.7,3228.5,0.918488]
[1641629916151,0.92917127,3228.7,3228.6,0.49433183]
[1641629918054,2.00479,3229.0,3228.6,0.49433183]
[1641629918252,2.00479,3229.0,3228.7,0.264788]
[1641629918653,2.00479,3229.0,3228.8,0.640787]
[1641629919052,2.00479,3229.0,3228.8,0.905575]
[1641629919251,2.00479,3229.0,3228.9,1.34686538]
[1641629919953,2.00479,3229.0,3228.9,2.21766538]
[1641629920153,2.00479,3229.0,3228.9,0.8708]
[1641629920354,2.00479,3229.0,3228.8,1.26448232]
[1641629920557,2.62859,3229.0,3228.8,1.26448232]
[1641629920753,0.37610266,3228.7,3228.3,2.63142114]
[1641629920953,0.264788,3228.9,3228.3,1.35463015]
[1641629921153,0.905575,3228.9,3228.3,1.35463015]
[1641629921454,2.00479,3228.6,3228.3,1.35463015]
[1641629921656,2.00479,3228.6,3228.3,1.99541715]
[1641629922255,2.00479,3228.6,3228.3,1.35463015]
[1641629922655,0.264788,3228.5,3228.3,1.35463015]
[1641629925664,0.264788,3228.5,3227.9,1.27679099]
[1641629926264,1.19403701,3228.5,3227.9,1.27679099]
[1641629926966,1.19403701,3228.5,3227.8,2.71551903]
[1641629927167,1.19403701,3228.5,3227.8,2.98030703]
[1641629927766,0.92924901,3228.5,3227.9,0.640787]
[1641629927967,4.00958,3228.6,3228.0,0.264788]
[1641629929069,0.264788,3228.5,3228.0,0.264788]
[1641629929572,4.00958,3228.6,3228.0,0.264788]
[1641629932573,4.274368,3228.6,3228.0,0.264788]
[1641629935376,2.269578,3228.6,3228.0,0.264788]
[1641629935576,2.00479,3228.6,3228.0,0.264788]
[1641629935777,2.00479,3228.6,3228.0,0.927088]
[1641629935976,2.00479,3229.0,3228.2,1.54845503]
[1641629936485,2.00479,3229.0,3228.3,0.264788]
[1641629936686,0.905575,3228.9,3228.3,0.264788]
[1641629936886,1.11898884,3228.7,3228.2,1.54845503]
[1641629937287,0.264788,3228.6,3228.2,1.54845503]
[1641629937688,2.00479,3228.5,3228.2,1.54845503]
[1641629940191,2.00479,3228.5,3228.2,2.18924203]
[1641629940792,2.00479,3228.5,3228.2,1.54845503]
[1641629941193,2.00479,3228.5,3228.2,1.81324303]
[1641629942296,2.00479,3228.5,3228.2,0.264788]
[1641629942495,2.00479,3228.5,3228.3,0.49436015]
[1641629942695,0.264788,3228.4,3228.3,0.49436015]
[1641629943098,0.264788,3228.4,3228.0,0.49436015]
[1641629943499,0.264788,3228.4,3228.1,0.640787]
[1641629943697,2.00479,3228.5,3228.1,1.244087]
[1641629943899,2.00479,3228.5,3228.3,0.76927905]
[1641629944302,2.00479,3228.5,3228.4,1.38036004]
[1641629946200,2.00479,3228.5,3228.4,2.6437777]
[1641629947201,2.00479,3228.5,3228.4,1.87472019]
[1641629949205,2.269578,3228.5,3228.4,1.87472019]
[1641629949403,0.92929621,3228.3,3228.0,1.27679099]
[1641629949607,3.50479,3228.1,3228.0,1.27679099]
[1641629949803,3.50479,3228.1,3228.0,0.34736106]
[1641629950005,2.00479,3228.1,3227.5,1.91822531]
[1641629950208,2.00479,3228.1,3227.4,1.91822531]
[1641629950804,4.956783,3228.0,3227.4,1.91822531]
[1641629951707,2.00479,3227.8,3227.4,1.91822531]
[1641629951907,2.00479,3227.8,3226.9,1.53458025]
[1641629952407,2.90459,3227.8,3226.9,1.53458025]
[1641629952605,2.90459,3227.8,3227.0,1.54903789]
[1641629953409,2.90459,3227.8,3227.1,0.905575]
[1641629953610,2.00479,3227.3,3227.1,0.905575]
[1641629953908,2.00479,3227.3,3227.0,1.54903789]
[1641629955310,2.00479,3227.3,3226.8,0.8088415]
[1641629956609,2.00479,3227.3,3226.8,1.4496285]
[1641629957208,2.00479,3227.3,3226.8,1.7144165]
[1641629958211,31.31730579,3228.4,3227.1,1.5]
[1641629958410,31.31730579,3228.4,3227.1,0.8872]
[1641629958813,31.31730579,3228.4,3227.4,1.54881957]
[1641629959016,31.31730579,3228.4,3227.1,0.8872]
[1641629959213,31.31730579,3228.4,3227.5,1.04772506]
[1641629959513,0.92938751,3228.0,3227.5,1.04772506]
[1641629959714,0.640787,3227.9,3227.5,3.05251506]
[1641629959914,0.640787,3227.9,3227.5,3.31730306]
[1641629960913,0.640787,3227.9,3227.5,3.05251506]
[1641629963016,0.640787,3227.9,3227.5,1.04772506]
[1641629963216,0.92938751,3228.0,3227.5,1.04772506]
[1641629963416,0.92938751,3228.0,3227.5,2.24081306]